{"text_format":"1","workbook":"xlsx","n_sheets":4,"sheets":["Instructions","Wheel Criteria","PROGRESS WHEEL","Macro"],"not_rendered":{"charts":0,"images":12,"macros":1,"external_links":0,"defined_names":10,"comments":0,"pivot_tables":0},"unopened":[],"bounds":{"document_bytes":16777216,"sheet_cells":100000,"rows_first":2000,"rows_last":500,"rows_between":2000,"halvings":0,"cell_chars":16384,"cell_head_chars":4096},"cells_cut":0,"cells_raw":0,"read":"whole","date_system":"1900"}

{"sheet":"Instructions","index":0,"n_rows":0,"n_cols":0,"rows_kept":0,"cut":false,"hidden":false,"merged":[]}

{"sheet":"Wheel Criteria","index":1,"n_rows":130,"n_cols":5,"rows_kept":130,"cut":false,"hidden":false,"merged":[]}
[null,{"$error":"#VALUE!"},"SPECIES RECOVERY PROGRESS WHEEL FOR:  species name","SPECIES ASSESSOR(S) & ASSESSMENT DATE:  "]
["index","Team\nAssessment\n0  or  1","PROGRESS LEVELS (1—5 level criteria)","COMMENTS / ADDITIONAL EXPLANATIONS for Progress Levels.   Working Groups: if appropriate, please add evidence or justifications in Column E.","Working Group Self-Assessment Evidence/Justifications"]
["1.0.0",null,"ORGANIZE NETWORK"]
["1.1.0",null,"Team Formation"]
["1.1.1",null,"1  Core team coalesces around bird species/multispecies group","Interested parties who will provide leadership come together to create working group"]
["1.1.2",null,"2  Named working group established with defined leadership","Working group formed with at least initial leadership responsibilities assigned"]
["1.1.3",null,"3  Human dimensions & biological experts invited to partnership","Invitations to multiple spheres of expertise: biologists, ecologists, social scientists, government, habitat managers; core sphere = active working group members, supporting sphere = ancillary members/occasional experts"]
["1.1.4",null,"4  Attention to diversity and inclusivity in core and supporting teams","(amplifies level 3) Global South leaders & groups invited; diverse and nontraditional partners invited"]
["1.1.5",null,"5  Group organizational plan and clear rules of engagement established","Rules of engagement reflect values on inclusiveness and a clear process for decision making"]
["1.2.0",null,"Connections"]
["1.2.1",null,"1  Basic internal communications plan established","Email lists, listserv strategies, periodic newsletter?"]
["1.2.2",null,"2  Meeting schedule identified and sustained","Group and subgroups meet virtually and/or in person—and continue to meet—on a regular schedule"]
["1.2.3",null,"3  External communication: established website and/or newsletter","Structure to maintain group visibility with other working groups and general public (if desired)"]
["1.2.4",null,"4  Multilingual capacity","Mechanism in place for translating website, communications, meetings, etc. into English, Spanish, French, Portuguese (as needed)"]
["1.2.5",null,"5  Strategy for sustaining partnership involvement","Strategy in place for ensuring that partner contact and capacity building continue to occur; results of this planning actualized in criteria 1.3.4 and 1.3.5."]
["1.3.0",null,"Network Action"]
["1.3.1",null,"1  Organizational and conservation workplan delineating necessary tasks","Core team cannot do all the work; workplan articulates necessary tasks and the organization necessary to get tasks done"]
["1.3.2",null,"2  Responsibility for tasks assumed by subcommittees with leaders ","Permanent or as-needed subcommittees with leadership/coordination responsibility clearly designated and operational"]
["1.3.3",null,"3  Subcommittees/local groups deliberately linked horizontally and vertically","Flow of information and support between groups/committees is encouraged; all groups linked to larger effort, information transmitted to subgroups and subgroup accomplishments scaled up"]
["1.3.4",null,"4  Intentional capacity building","Network implements its plans for sustaining conservation action—continued education, training opportunities, monitoring."]
["1.3.5",null,"5  Network relationships engender continued conservation action","Network strength fosters relationships that lead to autonomous support and conservation action (similar to 6.3.5, but with organizational as opposed to implementation context)"]
["2.0.0",null,"ASSESS  SPECIES POPULATION"]
["2.1.0",null,"Vulnerability"]
["2.1.1",null,"1  Global population size, short-term & long-term trends estimated","Some idea of population parameters from isolated surveys and/or expert opinion"]
["2.1.2",null,"2  Global population size, short-term & long-term trends known","Greater certainty with respect to population size and trends based on statistically significant survey assessments"]
["2.1.3",null,"3  ACAD Watch List and Tipping Point assessment complete","Incorporates breeding & nonbreeding threat level, distribution, and climate change, as well as population size and trend"]
["2.1.4",null,"4  Vulnerability recognized at national, state/province, or joint venture scales","Compilation of state/province, Joint Venture, or national (including Middle/South America) listings completed"]
["2.1.5",null,"5  Local knowledge included in vulnerability assessment","Traditional ecological knowledge as well as unpublished Global South studies and knowledge incorporated in assessment"]
["2.2.0",null,"Population structure","NB: for a synopsis of population definitions, see Clark Rushing's NCTC Workshop Breakout talk"]
["2.2.1",null,"1  Subspecies identified","Known subspecies as described in the literature and museum specimens; may not be relevant"]
["2.2.2",null,"2  Genoscape analysis completed","Genoscape analysis (cf.Kristen Ruegg's work) completed; may not be relevant for all species"]
["2.2.3",null,"3  Spatially explicit population density and trends available","Spatially explicit source information in eBird, BBS, ACAD, etc."]
["2.2.4",null,"4  \"Natural\" populations defined by similar trend trajectories","Sensu Rushing  et al. 2015, Using demographic attributes from long-term monitoring data to delineate natural population structure"]
["2.2.5",null,"5  Potential partners identified in key breeding geographies","Analysis of partnering opportunities in areas of high species density and/or negative trajectories where conservation action is likely required"]
["2.3.0",null,"Migratory connectivity"]
["2.3.1",null,"1  Migratory status, breeding and nonbreeding geographies identified","Source information in eBird, BBS, ACAD, Birds of the World"]
["2.3.2",null,"2  Migratory connectivity and migration pathways identified","Results of studies of individual birds using isotopes, banding data, geolocators, nanotags, GPS transmitters, etc."]
["2.3.3",null,"3  Critical migratory stopover locations identified","Concentration areas during migration along shorelines, molt migration locations, etc."]
["2.3.4",null,"4  Linked breeding/nonbreeding areas for declining populations","Linkages established between distinctly declining breeding populations and nonbreeding areas for the same populations"]
["2.3.5",null,"5  Potential partners contacted in key nonbreeding geographies","Linkages established with biologists, ecologists, ornithologists, sociologists, conservationists, etc. in linked geographies of interest"]
["3.0.0",null,"IDENTIFY FOCUS AREAS"]
["3.1.0",null,"Demographics"]
["3.1.1",null,"1  Spatially explicit breeding season success, breeding productivity known","In addition to trends, actual spatially explicit breeding vital rates have been identified (e.g., nest success, production, fledgling survival)"]
["3.1.2",null,"2  Nonbreeding and annual cycle vital rates known","Adult survival during breeding and nonbreeding seasons, first year survival, dispersal, recurrent migratory mortality"]
["3.1.3",null,"3  Ecological and life history correlates of vital rates identified","Age- and sex-specific demographic and life history differences have been identified and quantitatively estimated"]
["3.1.4",null,"4  Integrated population model (IPM) completed","Full IPM model, or a determination that inference is sufficient to proceed with conservation action with incomplete knowledge"]
["3.1.5",null,"5  Socioeconomic correlates of demographic parameters identified","E.g., are spatially explicit vital rates correlated with land-ownership, conservation policies, or management practices?"]
["3.2.0",null,"Focus areas"]
["3.2.1",null,"1  Demographically linked populations identified","Demographics corroborate and refine linked migratory populations suggested by 2.3.4 assessment"]
["3.2.2",null,"2  IPM and linked population geography used to identify focus areas","When in the annual cycle and where in the species range would conservation action most likely change population trajectory?"]
["3.2.3",null,"3  Partnering opportunities identified in focus areas","In biologically assessed focal areas, partnership landscape assessed (e.g., private or public lands; economic status of local communities) "]
["3.2.4",null,"4  Key partner opportunities refined and contacts established","Network analysis suggest partnerships (not just bird-oriented) that might be most promising for leveraging conservation action"]
["3.2.5",null,"5  Biological focus areas refined by including human landscape assessment","Biological and social dimensions combined to further refine areas in which to focus species conservation actions"]
["3.3.0",null,"Local knowledge"]
["3.3.1",null,"1  Review of published knowledge relevant for identified focus areas","In addition to target species studies, what can we learn about focus areas that would be important (e.g. climate change, human well-being issues)?"]
["3.3.2",null,"2  Review of relevant local knowledge, published or unpublished","Thorough attempt to include studies published in Global South, unpublished reports, insights from scientists working in focus areas"]
["3.3.3",null,"3  Local community contacts identified in focus areas","Leaders of 3.2.4 partnerships identified (e.g., tribal biologists, community action leaders, strong links from amplified social network analysis)"]
["3.3.4",null,"4  Local and Traditional Ecological Knowledge assessed","Conversations with above community leaders results in inclusion of local insights and indigenous Traditional Ecological Knowledge"]
["3.3.5",null,"5  Focus area profile completed","Synthesis of social, biological, and geopolitical, and traditional ecological knowledge for focus areas"]
["4.0.0",null,"IDENTIFY CHALLENGES (a.k.a. Threats)"]
["4.1.0",null,"Habitat & Ecology"]
["4.1.1",null,"1  Breeding habitat and ecology known","Detailed breeding and foraging habitat relationships, including  breeding system, clutch size, brood sequence, nest sites, diet, etc."]
["4.1.2",null,"2  Nonbreeding habitat and ecology known","Nonbreeding habitat relationships, including dispersal, migration, interspecies relationships, foraging niche, molt requirements, etc."]
["4.1.3",null,"3  Spatially explicit habitat mapping, breeding and nonbreeding","GIS mapping of available and restorable habitat, breeding and nonbreeding, especially within focus areas"]
["4.1.4",null,"4  Human activities affecting breeding habitat quality identified","What are the most important anthropogenic factors affecting breeding habitat quality at habitat (not regional) scale?"]
["4.1.5",null,"5  Human activities affecting nonbreeding habitat quality identified","What are the most important anthropogenic factors affecting nonbreeding habitat quality at habitat (not regional) scale?"]
["4.2.0",null,"Landscape Challenges","NB:  A.k.a. Threats (e.g., in Standards for the Practice of Conservation)"]
["4.2.1",null,"1  Broad regional breeding season threats identified","Broad (e.g., agriculture, urbanization) regionally-specific threats identified (using, e.g., Conservation Standards, Audubon threats map)"]
["4.2.2",null,"2  Broad regional nonbreeding season threats identified","Broad (e.g., conversion to pasture) regionally-specific threats identified for nonbreeding season, including local knowledge"]
["4.2.3",null,"3  Socioeconomic drivers of threats identified","Preliminary analysis of anthropogenic drivers of threats, including assessment of societal value/perceptions of threats"]
["4.2.4",null,"4  Systematic threats analysis, refinement, and prioritization","Threats prioritization (e.g., Conservation Standards) also includes feasibility based on human dimensions assessment"]
["4.2.5",null,"5  Existing campaigns for addressing priority threats identified","Analysis of partnering opportunities (allies) for addressing threats, especially in areas of high species density and/or negative trajectories "]
["4.3.0",null,"Limiting factors","NB:  We are promoting using the term \"threats\" (landscape challenges) for broad-scale (ecosystem-level) causes of decline, and \"limiting factors\" for more localized causes of population limitation "]
["4.3.1",null,"1  Threat analysis applied to focus areas","Analysis of links between IPM model (where/when), focus area determination (3.3.5), and identified threats "]
["4.3.2",null,"2  Intersection between species ecology and threats explored","Intersection of broad threat and species ecology allows refinement of threat to level of a limiting factor hypothesis (e.g., wood encroachment removal from nonbreeding season grasslands)"]
["4.3.3",null,"3  Socioeconomic analysis of hypothetical limiting factor","identification of anthropogenic drivers underlying limiting factor (e.g., what are the human dimensions aspects leading to woody encroachment in nonbreeding season grasslands)"]
["4.3.4",null,"4  Local or Traditional Ecological Knowledge included ","Full incorporation of additional local knowledge in identifying specific limiting factor to be addressed"]
["4.3.5",null,"5  Species-specific limiting factor(s) identified","Limiting factor identified and refined at scale sufficient to design adaptive research or initiate targeted conservation action (e.g., wood encroachment removal from nonbreeding season grasslands)"]
["5.0.0",null,"STRATEGIZE  RECOVERY"]
["5.1.0",null,"Landscape Opportunities","NB: Key idea here is that addressing broad-scale (landscape) threats will likely be outside the scope of a single-species working group and will necessitate alignment with non-bird groups"]
["5.1.1",null,"1  Prioritize alignment with broad-scale threat reduction campaigns","From allied partner opportunity analysis (4.2.5), prioritize existing broadscale efforts most compatible with meeting species-specific needs (breeding and/or nonbreeding)"]
["5.1.2",null,"2  Identify compatible allied partnership goals and objectives","Listen carefully, understand aligned partner goals and objectives to determine entry points for mutual-benefit strategic planning"]
["5.1.3",null,"3  Identify beneficial practices for working with outside partners","Draw from social science expertise on strategies for alignment with partners with different goals and objectives than bird species recovery"]
["5.1.4",null,"4  Develop strategies for aligning bird objectives with allies","Identify programs (entry points) most closely aligned with species objectives (e.g., CRP in Food Bill, rotational grazing, dynamic landscape forest harvest planning, etc.)"]
["5.1.5",null,"5  Subcommittee(s) established to influence/work with partner opportunities","Create dedicated and intentional structure within working group to continue to develop relationships with allies (e.g., collective representative to lobby policy, presence of forestry councils, etc.)"]
["5.2.0",null,"Limiting factor mitigation"]
["5.2.1",null,"1  Establish species population goals and objectives","How is \"recovery\" defined? Population goals as either numbers or trends, ideally identified both rangewide and parsed by focus areas"]
["5.2.2",null,"2  Develop influence diagram/results chain to address limiting factor","Diagram of chain of events (e.g., Open Standards) including threats, barriers, actions, and issues leading to mitigation or elimination of limiting factor(s)"]
["5.2.3",null,"3  Incorporate human well being objectives into results chain","Results chain (cf. Open Standards) includes human well being or affected community benefits that accrue from conservation actions"]
["5.2.4",null,"4  Determine sequential stages, progress metrics, research & monitoring plan","Results chain clearly identifies sequential actions or research, inflection points for adaptive decisions, intermediate and final evaluation metrics"]
["5.2.5",null,"5  Estimate costs required to reach limiting factor mitigation","Estimates of costs of each stage of research/mitigation plan"]
["5.3.0",null,"Partnerships and funding"]
["5.3.1",null,"1  Full annual cycle conservation plan completed","Plan includes review of biology and human dimensions profile; threats analysis; limiting factor analysis; research plan; strategies to reduce threats and mitigate limiting factors"]
["5.3.2",null,"2  Full annual cycle conservation investment plan completed","As above, but adds cost of investments of recovery phases; plan for scaling up conservation actions; monitoring and evaluation strategy "]
["5.3.3",null,"3  Funding source and partnership analysis completed","What agencies, policies, or programs are potential sources of funding for different components of research/recovery conservation plan"]
["5.3.4",null,"4  Strategy to contact and court funding sources","Communication and outreach strategy to secure funding for plan components"]
["5.3.5",null,"5  Funding secured to proceed with conservation plan implementation","Plan includes strategy for moving forward under scenarios of partial funding; ideally guided by results chain breakdown in 5.2.4 & 5.2.5"]
["6.0.0",null,"IMPLEMENT ACTION"]
["6.1.0",null,"Adaptive research","NB: Assumption that even under a scenario of habitat acquisition, some degree of habitat restoration will be required to mitigate limiting factors"]
["6.1.1",null,"1  Focus area habitat restoration research initiated","Habitat management need not be delayed until full plan completion if research is needed to test limiting factor hypotheses"]
["6.1.2",null,"2  Habitat restoration effectiveness confirmed","Monitoring confirms effectiveness of habitat restoration (or other local action, e.g. hunting management) as a means of mitigating limiting factor"]
["6.1.3",null,"3  Research/restoration conducted with affected community involvement","Full participation of affected community as partners in research and habitat manipulations (or other local actions, e.g. hunting management)"]
["6.1.4",null,"4  Scale of restoration/management strategy expanded","Initial success of mitigation strategy suggests expanding strategy to other localities within or outside focus area; cycle 6.1.1 to 6.1.4 repeats"]
["6.1.5",null,"5  Monitoring of both social and bird population outcomes","Monitoring continues to confirm success of limiting factor mitigation OR requires adaptive changes that may necessitate revisiting other segments of the wheel"]
["6.2.0",null,"Ecosystem change"]
["6.2.1",null,"1  Partnership strategies for broad-scale change initiated","Broad-scale threat reduction strategies initiated through partnerships with allied campaigns (e.g., grassland protection/restoration, CRP, feral cat control)"]
["6.2.2",null,"2  Monitoring of species population response to broad threat mitigation","Are target bird species populations responding positively to broad-scale threat mitigation?"]
["6.2.3",null,"3  Species requirements integrated successfully into ecosystem conservation","Based on species population response, do inclusion of species-specific requirements need to be re-negotiated?"]
["6.2.4",null,"4  Monitoring/assessment of species group/allied campaign relationship","Social science analysis to evaluate relationship between bird species working group and allies; recommendations for adaptive changes"]
["6.2.5",null,"5  Effective communication of success of ecosystem partnership","Continued reinforcement of positive effects of bird species/threats reduction campaign alliance (e.g., flood control, drinking water, human health improvements, etc.)"]
["6.3.0",null,"Sustainability"]
["6.3.1",null,"1  Focus area recovery scaled up to rangewide population recovery","Initial success mitigating limiting factors within focus areas scaled up to achieve rangewide population recovery; may require recycling iteratively through wheel criteria"]
["6.3.2",null,"2  Rangewide adaptive monitoring plan in place","Long-term monitoring plan designed to detect species vulnerabilities (new limiting factors) and trigger adaptive recovery response "]
["6.3.3",null,"3  Final reporting, documentation, and outreach","Documentation of process, barriers and solutions, and successes completed to provide guidance to other species/ecosystem recovery efforts"]
["6.3.4",null,"4  Network and capacity building","Attention given throughout recovery process to building local community capacity (biologist & sociologist training), education for next generation conservationists"]
["6.3.5",null,"5  Established relationships transcend goals/issues","Established individual and community relationships and problem-solving mentality transcend recovery process, can be leveraged for future conservation action"]
[]
[]
[]
[]
[]
[]
[]
[]
[]
[]
[null,0]
[null,1]
[null,2]
[null,9]

{"sheet":"PROGRESS WHEEL","index":2,"n_rows":31,"n_cols":6,"rows_kept":31,"cut":false,"hidden":false,"merged":[[27,0,27,5],[7,0,7,5],[11,0,11,5],[19,0,19,5],[15,0,15,5],[23,0,23,5]]}
[null,null,null,null,null,"R2R SPECIES RECOVERY PROGRESS WHEEL"]
[]
["SPECIES:"]
["ASSESSOR:"]
["ASSESSMENT DATE:"]
[]
["R2R ATTRIBUTE CATEGORY","RECOVERY LEVEL 1","RECOVERY LEVEL 2","RECOVERY LEVEL 3","RECOVERY LEVEL 4","RECOVERY LEVEL 5"]
["5  STRATEGIZE RECOVERY"]
["Landscape Opportunities",{"$f":"'Wheel Criteria'!$B$81","v":0},{"$f":"'Wheel Criteria'!$B$82","v":0},{"$f":"'Wheel Criteria'!$B$83","v":0},{"$f":"'Wheel Criteria'!$B$84","v":0},{"$f":"'Wheel Criteria'!$B$85","v":0}]
["Limiting Factor Mitigation",{"$f":"'Wheel Criteria'!$B$87","v":0},{"$f":"'Wheel Criteria'!$B$88","v":0},{"$f":"'Wheel Criteria'!$B$89","v":0},{"$f":"'Wheel Criteria'!$B$90","v":0},{"$f":"'Wheel Criteria'!$B$91","v":0}]
["Partnership & Funding",{"$f":"'Wheel Criteria'!$B$93","v":0},{"$f":"'Wheel Criteria'!$B$94","v":0},{"$f":"'Wheel Criteria'!$B$95","v":0},{"$f":"'Wheel Criteria'!$B$96","v":0},{"$f":"'Wheel Criteria'!$B$97","v":0}]
["6  IMPLEMENT ACTION"]
["Adaptive Research",{"$f":"'Wheel Criteria'!$B$100","v":0},{"$f":"'Wheel Criteria'!$B$101","v":0},{"$f":"'Wheel Criteria'!$B$102","v":0},{"$f":"'Wheel Criteria'!$B$103","v":0},{"$f":"'Wheel Criteria'!$B$104","v":0}]
["Ecosystem Change",{"$f":"'Wheel Criteria'!$B$106","v":0},{"$f":"'Wheel Criteria'!$B$107","v":0},{"$f":"'Wheel Criteria'!$B$108","v":0},{"$f":"'Wheel Criteria'!$B$109","v":0},{"$f":"'Wheel Criteria'!$B$110","v":0}]
["Sustainability",{"$f":"'Wheel Criteria'!$B$112","v":0},{"$f":"'Wheel Criteria'!$B$113","v":0},{"$f":"'Wheel Criteria'!$B$114","v":0},{"$f":"'Wheel Criteria'!$B$115","v":0},{"$f":"'Wheel Criteria'!$B$116","v":0}]
["1  ORGANIZE NETWORK"]
["Team Formation",{"$f":"'Wheel Criteria'!$B5","v":0},{"$f":"'Wheel Criteria'!$B6","v":0},{"$f":"'Wheel Criteria'!$B7","v":0},{"$f":"'Wheel Criteria'!$B8","v":0},{"$f":"'Wheel Criteria'!$B9","v":0}]
["Connections",{"$f":"'Wheel Criteria'!$B11","v":0},{"$f":"'Wheel Criteria'!$B12","v":0},{"$f":"'Wheel Criteria'!$B13","v":0},{"$f":"'Wheel Criteria'!$B14","v":0},{"$f":"'Wheel Criteria'!$B15","v":0}]
["Network Action",{"$f":"'Wheel Criteria'!$B17","v":0},{"$f":"'Wheel Criteria'!$B18","v":0},{"$f":"'Wheel Criteria'!$B19","v":0},{"$f":"'Wheel Criteria'!$B20","v":0},{"$f":"'Wheel Criteria'!$B21","v":0}]
["2  ASSESS SPECIES POPULATION"]
["Vulnerability",{"$f":"'Wheel Criteria'!$B24","v":0},{"$f":"'Wheel Criteria'!$B25","v":0},{"$f":"'Wheel Criteria'!$B26","v":0},{"$f":"'Wheel Criteria'!$B27","v":0},{"$f":"'Wheel Criteria'!$B28","v":0}]
["Population Structure",{"$f":"'Wheel Criteria'!$B30","v":0},{"$f":"'Wheel Criteria'!$B31","v":0},{"$f":"'Wheel Criteria'!$B32","v":0},{"$f":"'Wheel Criteria'!$B33","v":0},{"$f":"'Wheel Criteria'!$B34","v":0}]
["Migratory Connectivity",{"$f":"'Wheel Criteria'!$B36","v":0},{"$f":"'Wheel Criteria'!$B37","v":0},{"$f":"'Wheel Criteria'!$B38","v":0},{"$f":"'Wheel Criteria'!$B39","v":0},{"$f":"'Wheel Criteria'!$B40","v":0}]
["3  IDENTIFY FOCUS AREAS"]
["Demographics",{"$f":"'Wheel Criteria'!$B43","v":0},{"$f":"'Wheel Criteria'!$B44","v":0},{"$f":"'Wheel Criteria'!$B45","v":0},{"$f":"'Wheel Criteria'!$B46","v":0},{"$f":"'Wheel Criteria'!$B47","v":0}]
["Focus Areas",{"$f":"'Wheel Criteria'!$B49","v":0},{"$f":"'Wheel Criteria'!$B50","v":0},{"$f":"'Wheel Criteria'!$B51","v":0},{"$f":"'Wheel Criteria'!$B52","v":0},{"$f":"'Wheel Criteria'!$B53","v":0}]
["Local Knowledge",{"$f":"'Wheel Criteria'!$B55","v":0},{"$f":"'Wheel Criteria'!$B56","v":0},{"$f":"'Wheel Criteria'!$B57","v":0},{"$f":"'Wheel Criteria'!$B58","v":0},{"$f":"'Wheel Criteria'!$B59","v":0}]
["4  IDENTIFY CHALLENGES"]
["Habitat and Ecology",{"$f":"'Wheel Criteria'!$B62","v":0},{"$f":"'Wheel Criteria'!$B63","v":0},{"$f":"'Wheel Criteria'!$B64","v":0},{"$f":"'Wheel Criteria'!$B65","v":0},{"$f":"'Wheel Criteria'!$B66","v":0}]
["Landscape Challenges",{"$f":"'Wheel Criteria'!$B68","v":0},{"$f":"'Wheel Criteria'!$B69","v":0},{"$f":"'Wheel Criteria'!$B70","v":0},{"$f":"'Wheel Criteria'!$B71","v":0},{"$f":"'Wheel Criteria'!$B72","v":0}]
["Limiting Factors",{"$f":"'Wheel Criteria'!$B74","v":0},{"$f":"'Wheel Criteria'!$B75","v":0},{"$f":"'Wheel Criteria'!$B76","v":0},{"$f":"'Wheel Criteria'!$B77","v":0},{"$f":"'Wheel Criteria'!$B78","v":0}]

{"sheet":"Macro","index":3,"n_rows":90,"n_cols":8,"rows_kept":90,"cut":false,"hidden":false,"merged":[]}
["AT.OU.1",{"$f":"IF('PROGRESS WHEEL'!B$9=1,1,IF('PROGRESS WHEEL'!B$9=2,2,IF('PROGRESS WHEEL'!B$9=9,9,0)))","v":0},null,null,null,"shade","value","class"]
["AT.OU.2",{"$f":"IF('PROGRESS WHEEL'!C$9=1,1,IF('PROGRESS WHEEL'!C$9=2,2,IF('PROGRESS WHEEL'!C$9=9,9,0)))","v":0},null,null,1,null,0,"class0"]
["AT.OU.3",{"$f":"IF('PROGRESS WHEEL'!D$9=1,1,IF('PROGRESS WHEEL'!D$9=2,2,IF('PROGRESS WHEEL'!D$9=9,9,0)))","v":0},null,null,2,null,1,"class1"]
["AT.OU.4",{"$f":"IF('PROGRESS WHEEL'!E$9=1,1,IF('PROGRESS WHEEL'!E$9=2,2,IF('PROGRESS WHEEL'!E$9=9,9,0)))","v":0},null,null,3,null,2,"class2"]
["AT.OU.5",{"$f":"IF('PROGRESS WHEEL'!F$9=1,1,IF('PROGRESS WHEEL'!F$9=2,2,IF('PROGRESS WHEEL'!F$9=9,9,0)))","v":0},null,null,4,null,9,"grant"]
["AT.IS.1",{"$f":"IF('PROGRESS WHEEL'!B$10=1,1,IF('PROGRESS WHEEL'!B$10=2,2,IF('PROGRESS WHEEL'!B$10=9,9,0)))","v":0}]
["AT.IS.2",{"$f":"IF('PROGRESS WHEEL'!C$10=1,1,IF('PROGRESS WHEEL'!C$10=2,2,IF('PROGRESS WHEEL'!C$10=9,9,0)))","v":0}]
["AT.IS.3",{"$f":"IF('PROGRESS WHEEL'!D$10=1,1,IF('PROGRESS WHEEL'!D$10=2,2,IF('PROGRESS WHEEL'!D$10=9,9,0)))","v":0}]
["AT.IS.4",{"$f":"IF('PROGRESS WHEEL'!E$10=1,1,IF('PROGRESS WHEEL'!E$10=2,2,IF('PROGRESS WHEEL'!E$10=9,9,0)))","v":0}]
["AT.IS.5",{"$f":"IF('PROGRESS WHEEL'!F$10=1,1,IF('PROGRESS WHEEL'!F$10=2,2,IF('PROGRESS WHEEL'!F$10=9,9,0)))","v":0}]
["AT.CN.1",{"$f":"IF('PROGRESS WHEEL'!B$11=1,1,IF('PROGRESS WHEEL'!B$11=2,2,IF('PROGRESS WHEEL'!B$11=9,9,0)))","v":0}]
["AT.CN.2",{"$f":"IF('PROGRESS WHEEL'!C$11=1,1,IF('PROGRESS WHEEL'!C$11=2,2,IF('PROGRESS WHEEL'!C$11=9,9,0)))","v":0}]
["AT.CN.3",{"$f":"IF('PROGRESS WHEEL'!D$11=1,1,IF('PROGRESS WHEEL'!D$11=2,2,IF('PROGRESS WHEEL'!D$11=9,9,0)))","v":0},null,null,null,"EE.HL.5","actReg"]
["AT.CN.4",{"$f":"IF('PROGRESS WHEEL'!E$11=1,1,IF('PROGRESS WHEEL'!E$11=2,2,IF('PROGRESS WHEEL'!E$11=9,9,0)))","v":0},null,null,null,{"$f":"VLOOKUP(actReg,regData,2,FALSE)","v":0},"actRegValue"]
["AT.CN.5",{"$f":"IF('PROGRESS WHEEL'!F$11=1,1,IF('PROGRESS WHEEL'!F$11=2,2,IF('PROGRESS WHEEL'!F$11=9,9,0)))","v":0},null,null,null,{"$f":"VLOOKUP(actRegValue,clsValue,2,FALSE)","v":"class0"},"actRegCode"]
["PC.SP.1",{"$f":"IF('PROGRESS WHEEL'!B$13=1,1,IF('PROGRESS WHEEL'!B$13=2,2,IF('PROGRESS WHEEL'!B$13=9,9,0)))","v":0}]
["PC.SP.2",{"$f":"IF('PROGRESS WHEEL'!C$13=1,1,IF('PROGRESS WHEEL'!C$13=2,2,IF('PROGRESS WHEEL'!C$13=9,9,0)))","v":0}]
["PC.SP.3",{"$f":"IF('PROGRESS WHEEL'!D$13=1,1,IF('PROGRESS WHEEL'!D$13=2,2,IF('PROGRESS WHEEL'!D$13=9,9,0)))","v":0}]
["PC.SP.4",{"$f":"IF('PROGRESS WHEEL'!E$13=1,1,IF('PROGRESS WHEEL'!E$13=2,2,IF('PROGRESS WHEEL'!E$13=9,9,0)))","v":0}]
["PC.SP.5",{"$f":"IF('PROGRESS WHEEL'!F$13=1,1,IF('PROGRESS WHEEL'!F$13=2,2,IF('PROGRESS WHEEL'!F$13=9,9,0)))","v":0}]
["PC.SC.1",{"$f":"IF('PROGRESS WHEEL'!B$14=1,1,IF('PROGRESS WHEEL'!B$14=2,2,IF('PROGRESS WHEEL'!B$14=9,9,0)))","v":0}]
["PC.SC.2",{"$f":"IF('PROGRESS WHEEL'!C$14=1,1,IF('PROGRESS WHEEL'!C$14=2,2,IF('PROGRESS WHEEL'!C$14=9,9,0)))","v":0}]
["PC.SC.3",{"$f":"IF('PROGRESS WHEEL'!D$14=1,1,IF('PROGRESS WHEEL'!D$14=2,2,IF('PROGRESS WHEEL'!D$14=9,9,0)))","v":0}]
["PC.SC.4",{"$f":"IF('PROGRESS WHEEL'!E$14=1,1,IF('PROGRESS WHEEL'!E$14=2,2,IF('PROGRESS WHEEL'!E$14=9,9,0)))","v":0}]
["PC.SC.5",{"$f":"IF('PROGRESS WHEEL'!F$14=1,1,IF('PROGRESS WHEEL'!F$14=2,2,IF('PROGRESS WHEEL'!F$14=9,9,0)))","v":0}]
["PC.WC.1",{"$f":"IF('PROGRESS WHEEL'!B$15=1,1,IF('PROGRESS WHEEL'!B$15=2,2,IF('PROGRESS WHEEL'!B$15=9,9,0)))","v":0}]
["PC.WC.2",{"$f":"IF('PROGRESS WHEEL'!C$15=1,1,IF('PROGRESS WHEEL'!C$15=2,2,IF('PROGRESS WHEEL'!C$15=9,9,0)))","v":0}]
["PC.WC.3",{"$f":"IF('PROGRESS WHEEL'!D$15=1,1,IF('PROGRESS WHEEL'!D$15=2,2,IF('PROGRESS WHEEL'!D$15=9,9,0)))","v":0}]
["PC.WC.4",{"$f":"IF('PROGRESS WHEEL'!E$15=1,1,IF('PROGRESS WHEEL'!E$15=2,2,IF('PROGRESS WHEEL'!E$15=9,9,0)))","v":0}]
["PC.WC.5",{"$f":"IF('PROGRESS WHEEL'!F$15=1,1,IF('PROGRESS WHEEL'!F$15=2,2,IF('PROGRESS WHEEL'!F$15=9,9,0)))","v":0}]
["SC.DP.1",{"$f":"IF('PROGRESS WHEEL'!B$17=1,1,IF('PROGRESS WHEEL'!B$17=2,2,IF('PROGRESS WHEEL'!B$17=9,9,0)))","v":0}]
["SC.DP.2",{"$f":"IF('PROGRESS WHEEL'!$C$17=1,1,IF('PROGRESS WHEEL'!$C$17=2,2,IF('PROGRESS WHEEL'!$C$17=9,9,0)))","v":0}]
["SC.DP.3",{"$f":"IF('PROGRESS WHEEL'!$D$17=1,1,IF('PROGRESS WHEEL'!$D$17=2,2,IF('PROGRESS WHEEL'!$D$17=9,9,0)))","v":0}]
["SC.DP.4",{"$f":"IF('PROGRESS WHEEL'!$E$17=1,1,IF('PROGRESS WHEEL'!$E$17=2,2,IF('PROGRESS WHEEL'!$E$17=9,9,0)))","v":0}]
["SC.DP.5",{"$f":"IF('PROGRESS WHEEL'!$F$17=1,1,IF('PROGRESS WHEEL'!$F$17=2,2,IF('PROGRESS WHEEL'!$F$17=9,9,0)))","v":0}]
["SC.DA.1",{"$f":"IF('PROGRESS WHEEL'!B$18=1,1,IF('PROGRESS WHEEL'!B$18=2,2,IF('PROGRESS WHEEL'!B$18=9,9,0)))","v":0}]
["SC.DA.2",{"$f":"IF('PROGRESS WHEEL'!C$18=1,1,IF('PROGRESS WHEEL'!C$18=2,2,IF('PROGRESS WHEEL'!C$18=9,9,0)))","v":0}]
["SC.DA.3",{"$f":"IF('PROGRESS WHEEL'!D$18=1,1,IF('PROGRESS WHEEL'!D$18=2,2,IF('PROGRESS WHEEL'!D$18=9,9,0)))","v":0}]
["SC.DA.4",{"$f":"IF('PROGRESS WHEEL'!E$18=1,1,IF('PROGRESS WHEEL'!E$18=2,2,IF('PROGRESS WHEEL'!E$18=9,9,0)))","v":0}]
["SC.DA.5",{"$f":"IF('PROGRESS WHEEL'!F$18=1,1,IF('PROGRESS WHEEL'!F$18=2,2,IF('PROGRESS WHEEL'!F$18=9,9,0)))","v":0}]
["SC.NU.1",{"$f":"IF('PROGRESS WHEEL'!B$19=1,1,IF('PROGRESS WHEEL'!B$19=2,2,IF('PROGRESS WHEEL'!B$19=9,9,0)))","v":0}]
["SC.NU.2",{"$f":"IF('PROGRESS WHEEL'!C$19=1,1,IF('PROGRESS WHEEL'!C$19=2,2,IF('PROGRESS WHEEL'!C$19=9,9,0)))","v":0}]
["SC.NU.3",{"$f":"IF('PROGRESS WHEEL'!D$19=1,1,IF('PROGRESS WHEEL'!D$19=2,2,IF('PROGRESS WHEEL'!D$19=9,9,0)))","v":0}]
["SC.NU.4",{"$f":"IF('PROGRESS WHEEL'!E$19=1,1,IF('PROGRESS WHEEL'!E$19=2,2,IF('PROGRESS WHEEL'!E$19=9,9,0)))","v":0}]
["SC.NU.5",{"$f":"IF('PROGRESS WHEEL'!F$19=1,1,IF('PROGRESS WHEEL'!F$19=2,2,IF('PROGRESS WHEEL'!F$19=9,9,0)))","v":0}]
["CS.AS.1",{"$f":"IF('PROGRESS WHEEL'!B$21=1,1,IF('PROGRESS WHEEL'!B$21=2,2,IF('PROGRESS WHEEL'!B$21=9,9,0)))","v":0}]
["CS.AS.2",{"$f":"IF('PROGRESS WHEEL'!C$21=1,1,IF('PROGRESS WHEEL'!C$21=2,2,IF('PROGRESS WHEEL'!C$21=9,9,0)))","v":0}]
["CS.AS.3",{"$f":"IF('PROGRESS WHEEL'!D$21=1,1,IF('PROGRESS WHEEL'!D$21=2,2,IF('PROGRESS WHEEL'!D$21=9,9,0)))","v":0}]
["CS.AS.4",{"$f":"IF('PROGRESS WHEEL'!E$21=1,1,IF('PROGRESS WHEEL'!E$21=2,2,IF('PROGRESS WHEEL'!E$21=9,9,0)))","v":0}]
["CS.AS.5",{"$f":"IF('PROGRESS WHEEL'!F$21=1,1,IF('PROGRESS WHEEL'!F$21=2,2,IF('PROGRESS WHEEL'!F$21=9,9,0)))","v":0}]
["CS.AT.1",{"$f":"IF('PROGRESS WHEEL'!B$22=1,1,IF('PROGRESS WHEEL'!B$22=2,2,IF('PROGRESS WHEEL'!B$22=9,9,0)))","v":0}]
["CS.AT.2",{"$f":"IF('PROGRESS WHEEL'!C$22=1,1,IF('PROGRESS WHEEL'!C$22=2,2,IF('PROGRESS WHEEL'!C$22=9,9,0)))","v":0}]
["CS.AT.3",{"$f":"IF('PROGRESS WHEEL'!DB$22=1,1,IF('PROGRESS WHEEL'!D$22=2,2,IF('PROGRESS WHEEL'!D$22=9,9,0)))","v":0}]
["CS.AT.4",{"$f":"IF('PROGRESS WHEEL'!E$22=1,1,IF('PROGRESS WHEEL'!E$22=2,2,IF('PROGRESS WHEEL'!E$22=9,9,0)))","v":0}]
["CS.AT.5",{"$f":"IF('PROGRESS WHEEL'!F$22=1,1,IF('PROGRESS WHEEL'!F$22=2,2,IF('PROGRESS WHEEL'!F$22=9,9,0)))","v":0}]
["CS.SM.1",{"$f":"IF('PROGRESS WHEEL'!B$23=1,1,IF('PROGRESS WHEEL'!B$23=2,2,IF('PROGRESS WHEEL'!B$23=9,9,0)))","v":0}]
["CS.SM.2",{"$f":"IF('PROGRESS WHEEL'!C$23=1,1,IF('PROGRESS WHEEL'!C$23=2,2,IF('PROGRESS WHEEL'!C$23=9,9,0)))","v":0}]
["CS.SM.3",{"$f":"IF('PROGRESS WHEEL'!D$23=1,1,IF('PROGRESS WHEEL'!D$23=2,2,IF('PROGRESS WHEEL'!D$23=9,9,0)))","v":0}]
["CS.SM.4",{"$f":"IF('PROGRESS WHEEL'!E$23=1,1,IF('PROGRESS WHEEL'!E$23=2,2,IF('PROGRESS WHEEL'!E$23=9,9,0)))","v":0}]
["CS.SM.5",{"$f":"IF('PROGRESS WHEEL'!F$23=1,1,IF('PROGRESS WHEEL'!F$23=2,2,IF('PROGRESS WHEEL'!F$23=9,9,0)))","v":0}]
["EF.PR.1",{"$f":"IF('PROGRESS WHEEL'!B$25=1,1,IF('PROGRESS WHEEL'!B$25=2,2,IF('PROGRESS WHEEL'!B$25=9,9,0)))","v":0}]
["EF.PR.2",{"$f":"IF('PROGRESS WHEEL'!C$25=1,1,IF('PROGRESS WHEEL'!C$25=2,2,IF('PROGRESS WHEEL'!C$25=9,9,0)))","v":0}]
["EF.PR.3",{"$f":"IF('PROGRESS WHEEL'!D$25=1,1,IF('PROGRESS WHEEL'!D$25=2,2,IF('PROGRESS WHEEL'!D$25=9,9,0)))","v":0}]
["EF.PR.4",{"$f":"IF('PROGRESS WHEEL'!E$25=1,1,IF('PROGRESS WHEEL'!E$25=2,2,IF('PROGRESS WHEEL'!E$25=9,9,0)))","v":0}]
["EF.PR.5",{"$f":"IF('PROGRESS WHEEL'!F$25=1,1,IF('PROGRESS WHEEL'!F$25=2,2,IF('PROGRESS WHEEL'!F$25=9,9,0)))","v":0}]
["EF.HA.1",{"$f":"IF('PROGRESS WHEEL'!B$26=1,1,IF('PROGRESS WHEEL'!B$26=2,2,IF('PROGRESS WHEEL'!B$26=9,9,0)))","v":0}]
["EF.HA.2",{"$f":"IF('PROGRESS WHEEL'!C$26=1,1,IF('PROGRESS WHEEL'!C$26=2,2,IF('PROGRESS WHEEL'!C$26=9,9,0)))","v":0}]
["EF.HA.3",{"$f":"IF('PROGRESS WHEEL'!D$26=1,1,IF('PROGRESS WHEEL'!D$26=2,2,IF('PROGRESS WHEEL'!D$26=9,9,0)))","v":0}]
["EF.HA.4",{"$f":"IF('PROGRESS WHEEL'!E$26=1,1,IF('PROGRESS WHEEL'!E$26=2,2,IF('PROGRESS WHEEL'!E$26=9,9,0)))","v":0}]
["EF.HA.5",{"$f":"IF('PROGRESS WHEEL'!F$26=1,1,IF('PROGRESS WHEEL'!F$26=2,2,IF('PROGRESS WHEEL'!F$26=9,9,0)))","v":0}]
["EF.RS.1",{"$f":"IF('PROGRESS WHEEL'!B$27=1,1,IF('PROGRESS WHEEL'!B$27=2,2,IF('PROGRESS WHEEL'!B$27=9,9,0)))","v":0}]
["EF.RS.2",{"$f":"IF('PROGRESS WHEEL'!C$27=1,1,IF('PROGRESS WHEEL'!C$27=2,2,IF('PROGRESS WHEEL'!C$27=9,9,0)))","v":0}]
["EF.RS.3",{"$f":"IF('PROGRESS WHEEL'!D$27=1,1,IF('PROGRESS WHEEL'!D$27=2,2,IF('PROGRESS WHEEL'!D$27=9,9,0)))","v":0}]
["EF.RS.4",{"$f":"IF('PROGRESS WHEEL'!E$27=1,1,IF('PROGRESS WHEEL'!E$27=2,2,IF('PROGRESS WHEEL'!E$27=9,9,0)))","v":0}]
["EF.RS.5",{"$f":"IF('PROGRESS WHEEL'!F$27=1,1,IF('PROGRESS WHEEL'!F$27=2,2,IF('PROGRESS WHEEL'!F$27=9,9,0)))","v":0}]
["EE.LF.1",{"$f":"IF('PROGRESS WHEEL'!B$29=1,1,IF('PROGRESS WHEEL'!B$29=2,2,IF('PROGRESS WHEEL'!B$29=9,9,0)))","v":0}]
["EE.LF.2",{"$f":"IF('PROGRESS WHEEL'!C$29=1,1,IF('PROGRESS WHEEL'!C$29=2,2,IF('PROGRESS WHEEL'!C$29=9,9,0)))","v":0}]
["EE.LF.3",{"$f":"IF('PROGRESS WHEEL'!D$29=1,1,IF('PROGRESS WHEEL'!D$29=2,2,IF('PROGRESS WHEEL'!D$29=9,9,0)))","v":0}]
["EE.LF.4",{"$f":"IF('PROGRESS WHEEL'!E$29=1,1,IF('PROGRESS WHEEL'!E$29=2,2,IF('PROGRESS WHEEL'!E$29=9,9,0)))","v":0}]
["EE.LF.5",{"$f":"IF('PROGRESS WHEEL'!F$29=1,1,IF('PROGRESS WHEEL'!F$29=2,2,IF('PROGRESS WHEEL'!F$29=9,9,0)))","v":0}]
["EE.GF.1",{"$f":"IF('PROGRESS WHEEL'!B$30=1,1,IF('PROGRESS WHEEL'!B$30=2,2,IF('PROGRESS WHEEL'!B$30=9,9,0)))","v":0}]
["EE.GF.2",{"$f":"IF('PROGRESS WHEEL'!C$30=1,1,IF('PROGRESS WHEEL'!C$30=2,2,IF('PROGRESS WHEEL'!C$30=9,9,0)))","v":0}]
["EE.GF.3",{"$f":"IF('PROGRESS WHEEL'!D$30=1,1,IF('PROGRESS WHEEL'!D$30=2,2,IF('PROGRESS WHEEL'!D$30=9,9,0)))","v":0}]
["EE.GF.4",{"$f":"IF('PROGRESS WHEEL'!E$30=1,1,IF('PROGRESS WHEEL'!E$30=2,2,IF('PROGRESS WHEEL'!E$30=9,9,0)))","v":0}]
["EE.GF.5",{"$f":"IF('PROGRESS WHEEL'!F$30=1,1,IF('PROGRESS WHEEL'!F$30=2,2,IF('PROGRESS WHEEL'!F$30=9,9,0)))","v":0}]
["EE.HL.1",{"$f":"IF('PROGRESS WHEEL'!B$31=1,1,IF('PROGRESS WHEEL'!B$31=2,2,IF('PROGRESS WHEEL'!B$31=9,9,0)))","v":0}]
["EE.HL.2",{"$f":"IF('PROGRESS WHEEL'!C$31=1,1,IF('PROGRESS WHEEL'!C$31=2,2,IF('PROGRESS WHEEL'!C$31=9,9,0)))","v":0}]
["EE.HL.3",{"$f":"IF('PROGRESS WHEEL'!D$31=1,1,IF('PROGRESS WHEEL'!D$31=2,2,IF('PROGRESS WHEEL'!D$31=9,9,0)))","v":0}]
["EE.HL.4",{"$f":"IF('PROGRESS WHEEL'!E$31=1,1,IF('PROGRESS WHEEL'!E$31=2,2,IF('PROGRESS WHEEL'!E$31=9,9,0)))","v":0}]
["EE.HL.5",{"$f":"IF('PROGRESS WHEEL'!F$31=1,1,IF('PROGRESS WHEEL'!F$31=2,2,IF('PROGRESS WHEEL'!F$31=9,9,0)))","v":0}]